[Event "*** SCC Grand Prix: Titled Tuesday Blitz"]
[Site "Chess.com"]
[Date "2020.06.23"]
[Round "7"]
[White "Salem-AR"]
[Black "A-Fier"]
[Result "1-0"]
[WhiteElo "2939"]
[BlackElo "2778"]
[TimeControl "180+1"]
[EndTime "11:16:59 PDT"]
[Termination "Salem-AR won by resignation"]

1. d4 {[%clk 0:03:00.9]} 1... Nf6 {[%clk 0:02:59.5]} 2. c4 {[%clk 0:03:01.6]}
2... c5 {[%clk 0:02:59.4]} 3. d5 {[%clk 0:03:01.4]} 3... e6 {[%clk 0:02:59.8]}
4. Nc3 {[%clk 0:03:01.3]} 4... exd5 {[%clk 0:03:00.5]} 5. cxd5 {[%clk
0:03:02.2]} 5... d6 {[%clk 0:03:01]} 6. e4 {[%clk 0:03:02.9]} 6... g6 {[%clk
0:03:01.2]} 7. f4 {[%clk 0:03:03.5]} 7... Bg7 {[%clk 0:03:01.1]} 8. Bb5+ {[%clk
0:03:04.1]} 8... Nfd7 {[%clk 0:03:01.4]} 9. Nf3 {[%clk 0:03:04.2]} 9... a6
{[%clk 0:03:01]} 10. Bd3 {[%clk 0:03:04.6]} 10... b5 {[%clk 0:03:01.6]} 11. O-O
{[%clk 0:03:05]} 11... O-O {[%clk 0:03:02]} 12. a3 {[%clk 0:03:03.5]} 12... Re8
{[%clk 0:03:02.4]} 13. Qe1 {[%clk 0:03:01]} 13... Nf6 {[%clk 0:02:58]} 14. Kh1
{[%clk 0:02:22.8]} 14... Bg4 {[%clk 0:02:48.9]} 15. Ng5 {[%clk 0:01:56.5]} 15...
h6 {[%clk 0:02:42.9]} 16. Nxf7 {[%clk 0:01:55.4]} 16... Kxf7 {[%clk 0:02:43.8]}
17. e5 {[%clk 0:01:55.7]} 17... dxe5 {[%clk 0:02:44.6]} 18. fxe5 {[%clk
0:01:54.3]} 18... Nd7 {[%clk 0:02:43.6]} 19. e6+ {[%clk 0:01:43]} 19... Bxe6
{[%clk 0:02:21.4]} 20. dxe6+ {[%clk 0:01:43.9]} 20... Rxe6 {[%clk 0:02:22]} 21.
Bxg6+ {[%clk 0:01:42.8]} 21... Ke7 {[%clk 0:02:21.7]} 22. Qg3 {[%clk 0:01:35.1]}
22... Kf8 {[%clk 0:02:07.7]} 23. Bf5 {[%clk 0:01:23.1]} 23... Re8 {[%clk
0:01:53.3]} 24. Bf4 {[%clk 0:00:52.1]} 24... Kg8 {[%clk 0:01:46.1]} 25. Bxh6
{[%clk 0:00:49.5]} 25... Nh5 {[%clk 0:01:46.3]} 26. Qg6 {[%clk 0:00:46]} 26...
Ndf6 {[%clk 0:01:44.3]} 27. g4 {[%clk 0:00:32.2]} 27... Ra7 {[%clk 0:01:17.6]}
28. gxh5 {[%clk 0:00:32.2]} 28... Qa8+ {[%clk 0:01:17.7]} 29. Kg1 {[%clk
0:00:31.3]} 29... Kh8 {[%clk 0:01:18.2]} 30. Bg5 {[%clk 0:00:28.4]} 30... Rg8
{[%clk 0:01:16.9]} 31. Ne4 {[%clk 0:00:20]} 31... Qc6 {[%clk 0:01:13.2]} 32. h6
{[%clk 0:00:15.1]} 32... Bxh6 {[%clk 0:00:43.3]} 33. Qxh6+ {[%clk 0:00:14.9]}
33... Rh7 {[%clk 0:00:43.5]} 34. Bxh7 {[%clk 0:00:09.9]} 1-0

[Event "*** SCC Grand Prix: Titled Tuesday Blitz"]
[Site "Chess.com"]
[Date "2020.06.23"]
[Round "7"]
[White "mfwagnerpeixoto"]
[Black "crossingthestreet"]
[Result "0-1"]
[WhiteElo "2198"]
[BlackElo "2371"]
[TimeControl "180+1"]
[EndTime "11:17:06 PDT"]
[Termination "crossingthestreet won on time"]

1. d4 {[%clk 0:03:00.9]} 1... Nf6 {[%clk 0:02:58.4]} 2. c4 {[%clk 0:03:00.3]}
2... e6 {[%clk 0:02:58.7]} 3. g3 {[%clk 0:02:59.8]} 3... d5 {[%clk 0:02:58.5]}
4. Bg2 {[%clk 0:03:00.2]} 4... Be7 {[%clk 0:02:58.7]} 5. Nf3 {[%clk 0:03:00.5]}
5... O-O {[%clk 0:02:59.1]} 6. O-O {[%clk 0:03:01.1]} 6... dxc4 {[%clk
0:02:59.4]} 7. Qc2 {[%clk 0:03:01]} 7... a6 {[%clk 0:02:59.7]} 8. Qxc4 {[%clk
0:03:00.4]} 8... b5 {[%clk 0:02:59.7]} 9. Qc2 {[%clk 0:03:01]} 9... Bb7 {[%clk
0:02:59.8]} 10. Bg5 {[%clk 0:03:00.8]} 10... Nbd7 {[%clk 0:02:57]} 11. Nbd2
{[%clk 0:02:56.4]} 11... Rc8 {[%clk 0:02:42.5]} 12. Nb3 {[%clk 0:02:50.2]} 12...
Be4 {[%clk 0:02:30.6]} 13. Qc1 {[%clk 0:02:48.4]} 13... h6 {[%clk 0:02:12.7]}
14. Bxf6 {[%clk 0:02:45.8]} 14... Bxf6 {[%clk 0:02:13.2]} 15. Rd1 {[%clk
0:02:28.6]} 15... Qe7 {[%clk 0:02:05.9]} 16. Qf4 {[%clk 0:02:14]} 16... Bxf3
{[%clk 0:01:53.8]} 17. Bxf3 {[%clk 0:02:11.7]} 17... c5 {[%clk 0:01:54.1]} 18.
Bb7 {[%clk 0:01:50.6]} 18... Rb8 {[%clk 0:01:42.7]} 19. Na5 {[%clk 0:01:35.6]}
19... e5 {[%clk 0:01:24.8]} 20. Qe4 {[%clk 0:01:15.1]} 20... exd4 {[%clk
0:00:57.2]} 21. Qd5 {[%clk 0:00:19.3]} 21... Nb6 {[%clk 0:00:45.5]} 22. Qc6
{[%clk 0:00:16]} 22... Na4 {[%clk 0:00:32.6]} 23. Qxa6 {[%clk 0:00:12.5]} 23...
Nxb2 {[%clk 0:00:28]} 24. Rdb1 {[%clk 0:00:10.4]} 24... Qxe2 {[%clk 0:00:27.5]}
25. Nc6 {[%clk 0:00:07.6]} 25... Rbe8 {[%clk 0:00:26.8]} 26. Re1 {[%clk
0:00:05.3]} 26... Qxe1+ {[%clk 0:00:26.1]} 27. Rxe1 {[%clk 0:00:06.2]} 27...
Rxe1+ {[%clk 0:00:25.8]} 28. Kg2 {[%clk 0:00:07.1]} 28... d3 {[%clk 0:00:25.6]}
29. Qa5 {[%clk 0:00:02.3]} 29... b4 {[%clk 0:00:23.3]} 0-1

[Event "*** SCC Grand Prix: Titled Tuesday Blitz"]
[Site "Chess.com"]
[Date "2020.06.23"]
[Round "7"]
[White "mbojan"]
[Black "MVM2008"]
[Result "0-1"]
[WhiteElo "2560"]
[BlackElo "2114"]
[TimeControl "180+1"]
[EndTime "11:17:07 PDT"]
[Termination "MVM2008 won by resignation"]

1. Nf3 {[%clk 0:03:00.8]} 1... Nf6 {[%clk 0:02:56.9]} 2. Ng1 {[%clk 0:03:01.7]}
2... d5 {[%clk 0:02:54]} 3. Nf3 {[%clk 0:03:02.6]} 3... Nc6 {[%clk 0:02:53.6]}
4. Ng1 {[%clk 0:03:03.5]} 4... e5 {[%clk 0:02:53.8]} 5. g3 {[%clk 0:03:04.4]}
5... h5 {[%clk 0:02:52.7]} 6. Bg2 {[%clk 0:03:02.5]} 6... h4 {[%clk 0:02:50.8]}
7. d3 {[%clk 0:03:02.7]} 7... Bc5 {[%clk 0:02:50]} 8. e3 {[%clk 0:03:00.8]} 8...
Ng4 {[%clk 0:02:47.1]} 9. h3 {[%clk 0:02:55.1]} 9... hxg3 {[%clk 0:02:38.7]} 10.
hxg4 {[%clk 0:02:54.6]} 10... Rxh1 {[%clk 0:02:38.8]} 11. Bxh1 {[%clk
0:02:54.4]} 11... Qh4 {[%clk 0:02:38.9]} 12. Bxd5 {[%clk 0:02:09.9]} 12... gxf2+
{[%clk 0:02:34.9]} 13. Kf1 {[%clk 0:02:09.6]} 13... fxg1=N {[%clk 0:01:44.8]}
14. Kxg1 {[%clk 0:02:10.5]} 14... Qg3+ {[%clk 0:01:44.5]} 15. Kh1 {[%clk
0:02:09.7]} 15... Bxg4 {[%clk 0:01:41.6]} 16. Qg1 {[%clk 0:02:06.5]} 16... Qh3+
{[%clk 0:01:39.2]} 17. Qh2 {[%clk 0:02:06.7]} 17... Qf1+ {[%clk 0:01:32.1]} 18.
Qg1 {[%clk 0:02:06.9]} 18... Bf3+ {[%clk 0:01:31.4]} 19. Bxf3 {[%clk 0:02:06.7]}
19... Qxf3+ {[%clk 0:01:32.3]} 20. Qg2 {[%clk 0:02:07.4]} 20... Qf6 {[%clk
0:01:23.6]} 21. Nc3 {[%clk 0:02:01.7]} 21... O-O-O {[%clk 0:01:18.6]} 22. Ne4
{[%clk 0:02:01.4]} 22... Qe7 {[%clk 0:01:16.9]} 23. Qh3+ {[%clk 0:01:49.2]}
23... Kb8 {[%clk 0:01:15.3]} 24. Bd2 {[%clk 0:01:49.7]} 24... f5 {[%clk
0:01:06.1]} 25. Qxf5 {[%clk 0:01:20.9]} 25... Qh4+ {[%clk 0:01:02.6]} 26. Kg2
{[%clk 0:00:30.9]} 26... Rh8 {[%clk 0:00:31.6]} 27. Nf2 {[%clk 0:00:03.8]} 27...
Rf8 {[%clk 0:00:21.6]} 28. Kf3 {[%clk 0:00:04.4]} 0-1

[Event "*** SCC Grand Prix: Titled Tuesday Blitz"]
[Site "Chess.com"]
[Date "2020.06.23"]
[Round "7"]
[White "otrov-11"]
[Black "allvim"]
[Result "1-0"]
[WhiteElo "2384"]
[BlackElo "2211"]
[TimeControl "180+1"]
[EndTime "11:17:09 PDT"]
[Termination "otrov-11 won by resignation"]

1. d4 {[%clk 0:02:55]} 1... Nf6 {[%clk 0:02:59.9]} 2. c4 {[%clk 0:02:55.1]} 2...
g6 {[%clk 0:03:00.5]} 3. Nc3 {[%clk 0:02:55.5]} 3... d5 {[%clk 0:03:00.9]} 4.
cxd5 {[%clk 0:02:55.5]} 4... Nxd5 {[%clk 0:03:01.8]} 5. e4 {[%clk 0:02:55.8]}
5... Nxc3 {[%clk 0:03:02.2]} 6. bxc3 {[%clk 0:02:56.7]} 6... Bg7 {[%clk
0:03:02.9]} 7. Bc4 {[%clk 0:02:57.4]} 7... O-O {[%clk 0:03:03.2]} 8. Ne2 {[%clk
0:02:58]} 8... c5 {[%clk 0:03:03.8]} 9. Be3 {[%clk 0:02:57.5]} 9... Nc6 {[%clk
0:03:03.2]} 10. h3 {[%clk 0:02:57.4]} 10... Qa5 {[%clk 0:02:58.9]} 11. O-O
{[%clk 0:02:54.9]} 11... cxd4 {[%clk 0:02:49.4]} 12. cxd4 {[%clk 0:02:55.8]}
12... b6 {[%clk 0:02:46.5]} 13. Rc1 {[%clk 0:02:47.8]} 13... Bb7 {[%clk
0:02:46.3]} 14. h4 {[%clk 0:02:37.3]} 14... Qh5 {[%clk 0:02:27]} 15. Bd5 {[%clk
0:02:23.8]} 15... Rac8 {[%clk 0:02:08.5]} 16. Qd2 {[%clk 0:01:50.5]} 16... e6
{[%clk 0:01:45.2]} 17. Bxc6 {[%clk 0:01:05.8]} 17... Bxc6 {[%clk 0:01:44]} 18.
f3 {[%clk 0:00:51.1]} 18... Qxh4 {[%clk 0:01:00.4]} 19. Bg5 {[%clk 0:00:46.8]}
19... Qh5 {[%clk 0:01:00.7]} 20. Ng3 {[%clk 0:00:38.5]} 20... Bxd4+ {[%clk
0:01:00.2]} 21. Rf2 {[%clk 0:00:38.7]} 21... Bxf2+ {[%clk 0:00:39.4]} 22. Kxf2
{[%clk 0:00:39.6]} 22... Rfd8 {[%clk 0:00:13.2]} 23. Qxd8+ {[%clk 0:00:32.8]}
23... Rxd8 {[%clk 0:00:12.1]} 24. Nxh5 {[%clk 0:00:33.7]} 24... Rc8 {[%clk
0:00:05.6]} 25. Nf4 {[%clk 0:00:27]} 25... Kf8 {[%clk 0:00:04.8]} 26. Nd3 {[%clk
0:00:27]} 26... a5 {[%clk 0:00:04.5]} 27. Ne5 {[%clk 0:00:25.2]} 27... Bb7
{[%clk 0:00:05]} 28. Rxc8+ {[%clk 0:00:25.1]} 28... Bxc8 {[%clk 0:00:05.9]} 29.
Be3 {[%clk 0:00:25.4]} 29... Ke8 {[%clk 0:00:05.9]} 30. Bxb6 {[%clk 0:00:25.2]}
1-0

[Event "*** SCC Grand Prix: Titled Tuesday Blitz"]
[Site "Chess.com"]
[Date "2020.06.23"]
[Round "7"]
[White "CroissantNeuf"]
[Black "MatyChess1"]
[Result "0-1"]
[WhiteElo "2379"]
[BlackElo "2545"]
[TimeControl "180+1"]
[EndTime "11:17:14 PDT"]
[Termination "MatyChess1 won on time"]

1. e4 {[%clk 0:03:00.9]} 1... c5 {[%clk 0:02:58.2]} 2. Nf3 {[%clk 0:03:00.3]}
2... Nc6 {[%clk 0:02:58.3]} 3. Bb5 {[%clk 0:02:59.6]} 3... g6 {[%clk 0:02:57.8]}
4. Bxc6 {[%clk 0:02:59.2]} 4... dxc6 {[%clk 0:02:58.7]} 5. d3 {[%clk 0:02:59]}
5... Bg7 {[%clk 0:02:58.9]} 6. h3 {[%clk 0:02:59.6]} 6... Nf6 {[%clk 0:02:58.6]}
7. Nc3 {[%clk 0:03:00.2]} 7... Nd7 {[%clk 0:02:57.2]} 8. Be3 {[%clk 0:03:00.4]}
8... e5 {[%clk 0:02:57]} 9. Qd2 {[%clk 0:03:01]} 9... h6 {[%clk 0:02:56.5]} 10.
O-O {[%clk 0:03:00.5]} 10... b6 {[%clk 0:02:56.5]} 11. Ne2 {[%clk 0:02:58.4]}
11... Nf8 {[%clk 0:02:56.5]} 12. b4 {[%clk 0:02:57.2]} 12... cxb4 {[%clk
0:02:47.7]} 13. Qxb4 {[%clk 0:02:56.6]} 13... c5 {[%clk 0:02:46.7]} 14. Qd2
{[%clk 0:02:44.8]} 14... Ne6 {[%clk 0:02:37.3]} 15. a4 {[%clk 0:02:44.9]} 15...
Nd4 {[%clk 0:02:26.4]} 16. Bxd4 {[%clk 0:02:25.6]} 16... cxd4 {[%clk 0:02:03.2]}
17. a5 {[%clk 0:02:25.2]} 17... O-O {[%clk 0:02:02.7]} 18. Rfb1 {[%clk
0:02:18.8]} 18... bxa5 {[%clk 0:01:49.5]} 19. Qxa5 {[%clk 0:02:15.9]} 19... Qf6
{[%clk 0:01:44]} 20. Rb5 {[%clk 0:02:06.1]} 20... Re8 {[%clk 0:01:27.7]} 21. Qc7
{[%clk 0:02:04.8]} 21... Bxh3 {[%clk 0:01:24.4]} 22. Nxe5 {[%clk 0:01:32.9]}
22... Rac8 {[%clk 0:00:57.7]} 23. Qxa7 {[%clk 0:01:15.7]} 23... Rxc2 {[%clk
0:00:52.5]} 24. Ra2 {[%clk 0:00:08.2]} 24... Rxa2 {[%clk 0:00:27.3]} 25. Qxa2
{[%clk 0:00:09.1]} 25... Rxe5 {[%clk 0:00:24]} 26. Rxe5 {[%clk 0:00:04.9]} 26...
Qxe5 {[%clk 0:00:24.9]} 27. gxh3 {[%clk 0:00:05.4]} 27... Qh5 {[%clk 0:00:25.5]}
28. Kg2 {[%clk 0:00:03.7]} 28... Qg5+ {[%clk 0:00:20.8]} 29. Ng3 {[%clk
0:00:03.6]} 29... h5 {[%clk 0:00:21.4]} 30. Kh2 {[%clk 0:00:02.1]} 30... Qf4
{[%clk 0:00:20.3]} 31. Qe2 {[%clk 0:00:01.8]} 31... h4 {[%clk 0:00:19.9]} 0-1

[Event "*** SCC Grand Prix: Titled Tuesday Blitz"]
[Site "Chess.com"]
[Date "2020.06.23"]
[Round "7"]
[White "talaicito"]
[Black "manmanlai1"]
[Result "0-1"]
[WhiteElo "2122"]
[BlackElo "2428"]
[TimeControl "180+1"]
[EndTime "11:17:14 PDT"]
[Termination "manmanlai1 won by resignation"]

1. d4 {[%clk 0:03:00.9]} 1... d5 {[%clk 0:02:59.6]} 2. Bf4 {[%clk 0:03:00.6]}
2... c5 {[%clk 0:02:58.7]} 3. e3 {[%clk 0:02:59.4]} 3... Nc6 {[%clk 0:02:59.2]}
4. Nc3 {[%clk 0:02:59]} 4... a6 {[%clk 0:02:55.1]} 5. Nf3 {[%clk 0:02:57.5]}
5... Bg4 {[%clk 0:02:51.7]} 6. Be2 {[%clk 0:02:50.3]} 6... e6 {[%clk 0:02:51.4]}
7. O-O {[%clk 0:02:49.4]} 7... Nf6 {[%clk 0:02:51.5]} 8. Ne5 {[%clk 0:02:45.4]}
8... Bxe2 {[%clk 0:02:52.3]} 9. Nxe2 {[%clk 0:02:45.1]} 9... cxd4 {[%clk
0:02:48.4]} 10. exd4 {[%clk 0:02:44.6]} 10... Be7 {[%clk 0:02:41.2]} 11. c3
{[%clk 0:02:44.1]} 11... O-O {[%clk 0:02:40.9]} 12. Re1 {[%clk 0:02:41]} 12...
Nd7 {[%clk 0:02:37.8]} 13. Ng3 {[%clk 0:02:35.4]} 13... Ndxe5 {[%clk 0:02:33]}
14. dxe5 {[%clk 0:02:34.5]} 14... Qb6 {[%clk 0:02:29.1]} 15. Qg4 {[%clk
0:02:13.8]} 15... g6 {[%clk 0:02:14.5]} 16. Nh5 {[%clk 0:02:08.2]} 16... Qd8
{[%clk 0:02:11.4]} 17. Bh6 {[%clk 0:01:58.8]} 17... Re8 {[%clk 0:02:09.5]} 18.
Re3 {[%clk 0:01:55]} 18... Rc8 {[%clk 0:02:04.7]} 19. Ng7 {[%clk 0:01:45.1]}
19... Rf8 {[%clk 0:01:47.3]} 20. Rd1 {[%clk 0:01:24]} 20... Qd7 {[%clk
0:01:37.1]} 21. Nh5 {[%clk 0:01:14]} 21... Rfd8 {[%clk 0:01:32.6]} 22. Nf6+
{[%clk 0:01:13.8]} 22... Bxf6 {[%clk 0:01:32.4]} 23. exf6 {[%clk 0:01:14.7]}
23... e5 {[%clk 0:01:30.3]} 24. Qh4 {[%clk 0:01:13.9]} 24... Qf5 {[%clk
0:01:15.9]} 25. Bg5 {[%clk 0:00:42.1]} 25... h5 {[%clk 0:01:08.1]} 26. h3 {[%clk
0:00:41.3]} 26... d4 {[%clk 0:01:07.7]} 27. Rf3 {[%clk 0:00:35.3]} 27... Qc2
{[%clk 0:00:51.2]} 28. Rc1 {[%clk 0:00:35.1]} 28... Qe2 {[%clk 0:00:50.8]} 29.
Rf1 {[%clk 0:00:23.7]} 29... dxc3 {[%clk 0:00:43.8]} 30. Be3 {[%clk 0:00:20.4]}
30... Rd1 {[%clk 0:00:38.1]} 31. Rxd1 {[%clk 0:00:18.6]} 31... Qxd1+ {[%clk
0:00:39]} 32. Kh2 {[%clk 0:00:18.9]} 32... cxb2 {[%clk 0:00:22.6]} 33. Qg5
{[%clk 0:00:18.3]} 33... Qd6 {[%clk 0:00:22.3]} 34. Qxg6+ {[%clk 0:00:12.8]}
34... fxg6 {[%clk 0:00:21.4]} 35. f7+ {[%clk 0:00:13.2]} 35... Kh7 {[%clk
0:00:21.1]} 36. f8=Q {[%clk 0:00:12.3]} 36... Rxf8 {[%clk 0:00:20.9]} 37. Rxf8
{[%clk 0:00:12.9]} 37... Qxf8 {[%clk 0:00:21.3]} 0-1

[Event "*** SCC Grand Prix: Titled Tuesday Blitz"]
[Site "Chess.com"]
[Date "2020.06.23"]
[Round "7"]
[White "Kaua18"]
[Black "Yuri202062"]
[Result "0-1"]
[WhiteElo "2224"]
[BlackElo "2410"]
[TimeControl "180+1"]
[EndTime "11:17:16 PDT"]
[Termination "Yuri202062 won on time"]

1. e4 {[%clk 0:03:00.9]} 1... c5 {[%clk 0:03:00]} 2. Nf3 {[%clk 0:02:59.4]} 2...
e6 {[%clk 0:03:00.2]} 3. d4 {[%clk 0:02:54.8]} 3... cxd4 {[%clk 0:03:00.3]} 4.
Nxd4 {[%clk 0:02:55.7]} 4... a6 {[%clk 0:03:00.6]} 5. Bd3 {[%clk 0:02:55.3]}
5... Nf6 {[%clk 0:02:59.7]} 6. O-O {[%clk 0:02:55.1]} 6... d6 {[%clk 0:02:59.7]}
7. Qe2 {[%clk 0:02:55.3]} 7... Nbd7 {[%clk 0:02:48.1]} 8. Kh1 {[%clk 0:02:53.9]}
8... g6 {[%clk 0:02:44.6]} 9. f4 {[%clk 0:02:53.3]} 9... Bg7 {[%clk 0:02:44.6]}
10. c4 {[%clk 0:02:53]} 10... O-O {[%clk 0:02:43.6]} 11. Nc3 {[%clk 0:02:53.1]}
11... Qc7 {[%clk 0:02:43.2]} 12. Bd2 {[%clk 0:02:52.5]} 12... b6 {[%clk
0:02:43.2]} 13. Rae1 {[%clk 0:02:51.5]} 13... Bb7 {[%clk 0:02:43]} 14. b3 {[%clk
0:02:48.8]} 14... Rac8 {[%clk 0:02:41.4]} 15. f5 {[%clk 0:02:45.8]} 15... exf5
{[%clk 0:02:27.2]} 16. exf5 {[%clk 0:02:44.9]} 16... Rce8 {[%clk 0:02:13.6]} 17.
Qf2 {[%clk 0:02:10.8]} 17... Ng4 {[%clk 0:01:51.2]} 18. Qg1 {[%clk 0:02:10.1]}
18... Qc5 {[%clk 0:01:45.1]} 19. Nce2 {[%clk 0:01:45.1]} 19... d5 {[%clk
0:01:29.9]} 20. h3 {[%clk 0:01:40.5]} 20... Nge5 {[%clk 0:01:27.9]} 21. Bb1
{[%clk 0:01:15.1]} 21... dxc4 {[%clk 0:01:27.7]} 22. bxc4 {[%clk 0:01:10.5]}
22... Nxc4 {[%clk 0:01:26.5]} 23. Bc1 {[%clk 0:00:54.7]} 23... Nf6 {[%clk
0:00:58.5]} 24. fxg6 {[%clk 0:00:51.3]} 24... hxg6 {[%clk 0:00:55.3]} 25. Nb3
{[%clk 0:00:07.3]} 25... Qxg1+ {[%clk 0:00:52.7]} 26. Kxg1 {[%clk 0:00:08.2]}
26... Nd5 {[%clk 0:00:49.5]} 27. Ned4 {[%clk 0:00:06.8]} 27... Nde3 {[%clk
0:00:44.7]} 28. Rf2 {[%clk 0:00:04.7]} 28... a5 {[%clk 0:00:30.7]} 29. a4 {[%clk
0:00:04.1]} 29... Nd5 {[%clk 0:00:24.8]} 30. Bd3 {[%clk 0:00:03.7]} 30... Rxe1+
{[%clk 0:00:23.8]} 0-1

[Event "*** SCC Grand Prix: Titled Tuesday Blitz"]
[Site "Chess.com"]
[Date "2020.06.23"]
[Round "7"]
[White "Angel_Hranitel_37"]
[Black "ExtremeLearner"]
[Result "0-1"]
[WhiteElo "2418"]
[BlackElo "2221"]
[TimeControl "180+1"]
[EndTime "11:17:17 PDT"]
[Termination "ExtremeLearner won by checkmate"]

1. d4 {[%clk 0:03:00.9]} 1... Nf6 {[%clk 0:02:57.9]} 2. Nf3 {[%clk 0:03:00.4]}
2... g6 {[%clk 0:02:55.3]} 3. g3 {[%clk 0:03:00.8]} 3... Bg7 {[%clk 0:02:54]} 4.
Bg2 {[%clk 0:03:01.7]} 4... O-O {[%clk 0:02:52.9]} 5. O-O {[%clk 0:03:02.6]}
5... d6 {[%clk 0:02:51.8]} 6. Nc3 {[%clk 0:03:02.8]} 6... a6 {[%clk 0:02:47.1]}
7. a4 {[%clk 0:02:59.8]} 7... Nc6 {[%clk 0:02:42.5]} 8. e4 {[%clk 0:02:58.6]}
8... e5 {[%clk 0:02:41.3]} 9. h3 {[%clk 0:02:34.4]} 9... Re8 {[%clk 0:02:25.2]}
10. Be3 {[%clk 0:02:32.7]} 10... Bd7 {[%clk 0:01:57.3]} 11. Qd2 {[%clk
0:02:22.6]} 11... Qc8 {[%clk 0:01:41.4]} 12. Kh2 {[%clk 0:02:22.5]} 12... exd4
{[%clk 0:01:38.5]} 13. Nxd4 {[%clk 0:02:22]} 13... Ne5 {[%clk 0:01:38.7]} 14. b3
{[%clk 0:02:05.7]} 14... c5 {[%clk 0:01:30.9]} 15. Nde2 {[%clk 0:01:54.1]} 15...
Bxh3 {[%clk 0:01:29.5]} 16. Bxh3 {[%clk 0:01:50.4]} 16... Nf3+ {[%clk
0:01:29.3]} 17. Kg2 {[%clk 0:01:50.7]} 17... Nxd2 {[%clk 0:01:29.4]} 18. Bxc8
{[%clk 0:01:50.4]} 18... Nxf1 {[%clk 0:01:29.8]} 19. Rxf1 {[%clk 0:01:26.4]}
19... Raxc8 {[%clk 0:01:28.8]} 20. f3 {[%clk 0:01:26.6]} 20... d5 {[%clk
0:01:24.4]} 21. Bg5 {[%clk 0:01:14.3]} 21... dxe4 {[%clk 0:01:21.9]} 22. Bxf6
{[%clk 0:01:14.7]} 22... Bxf6 {[%clk 0:01:18.7]} 23. fxe4 {[%clk 0:01:15]} 23...
Bxc3 {[%clk 0:01:15]} 24. Nxc3 {[%clk 0:01:14.4]} 24... Rcd8 {[%clk 0:01:15.9]}
25. Nd5 {[%clk 0:01:13.1]} 25... Kg7 {[%clk 0:01:13.6]} 26. Rf4 {[%clk
0:01:06.3]} 26... f5 {[%clk 0:01:11.2]} 27. c4 {[%clk 0:01:05.9]} 27... Rxe4
{[%clk 0:01:04.9]} 28. Rxe4 {[%clk 0:01:04.9]} 28... fxe4 {[%clk 0:01:03.5]} 29.
Kf2 {[%clk 0:01:05.6]} 29... Rf8+ {[%clk 0:00:59.2]} 30. Ke3 {[%clk 0:01:05.7]}
30... Rf3+ {[%clk 0:00:59]} 31. Kxe4 {[%clk 0:01:06.6]} 31... Rxg3 {[%clk
0:00:58.9]} 32. Nc7 {[%clk 0:01:07]} 32... Kf6 {[%clk 0:00:53.3]} 33. Kd5 {[%clk
0:01:05.8]} 33... b6 {[%clk 0:00:48.2]} 34. Kc6 {[%clk 0:00:58.2]} 34... Rxb3
{[%clk 0:00:43.3]} 35. Nd5+ {[%clk 0:00:58.5]} 35... Ke5 {[%clk 0:00:23.9]} 36.
Nxb6 {[%clk 0:00:59.4]} 36... Kd4 {[%clk 0:00:15.4]} 37. a5 {[%clk 0:00:59.6]}
37... Ra3 {[%clk 0:00:12.1]} 38. Nd7 {[%clk 0:00:59.9]} 38... Rxa5 {[%clk
0:00:11.9]} 39. Nf6 {[%clk 0:01:00.4]} 39... Ra4 {[%clk 0:00:11.1]} 40. Nxh7
{[%clk 0:00:59.6]} 40... Rxc4 {[%clk 0:00:11.6]} 41. Ng5 {[%clk 0:01:00.5]}
41... Rc1 {[%clk 0:00:10.2]} 42. Nf3+ {[%clk 0:00:59.6]} 42... Ke3 {[%clk
0:00:10.2]} 43. Ne5 {[%clk 0:00:59]} 43... c4 {[%clk 0:00:10.2]} 44. Nxg6 {[%clk
0:00:59.6]} 44... c3 {[%clk 0:00:10.4]} 45. Ne5 {[%clk 0:01:00.3]} 45... c2
{[%clk 0:00:10.3]} 46. Kb6 {[%clk 0:01:01]} 46... Rb1+ {[%clk 0:00:09.5]} 47.
Ka7 {[%clk 0:01:01.2]} 47... c1=Q {[%clk 0:00:10.4]} 48. Nc6 {[%clk 0:00:57.7]}
48... Qc5+ {[%clk 0:00:08.4]} 49. Ka8 {[%clk 0:00:58.1]} 49... Qxc6+ {[%clk
0:00:08.4]} 50. Ka7 {[%clk 0:00:59]} 50... Qb7# {[%clk 0:00:08.9]} 0-1

[Event "*** SCC Grand Prix: Titled Tuesday Blitz"]
[Site "Chess.com"]
[Date "2020.06.23"]
[Round "7"]
[White "Hikaru"]
[Black "VMikhalevski"]
[Result "1-0"]
[WhiteElo "3214"]
[BlackElo "2806"]
[TimeControl "180+1"]
[EndTime "11:17:18 PDT"]
[Termination "Hikaru won on time"]

1. Nf3 {[%clk 0:03:00.9]} 1... Nf6 {[%clk 0:02:59.8]} 2. b3 {[%clk 0:03:00.1]}
2... g6 {[%clk 0:02:59.1]} 3. Bb2 {[%clk 0:03:00.2]} 3... Bg7 {[%clk 0:02:59.8]}
4. d4 {[%clk 0:03:01.1]} 4... d5 {[%clk 0:02:58.2]} 5. e3 {[%clk 0:03:01.4]}
5... O-O {[%clk 0:02:57.8]} 6. c4 {[%clk 0:03:02.1]} 6... c6 {[%clk 0:02:52.6]}
7. Bd3 {[%clk 0:03:01.4]} 7... Bg4 {[%clk 0:02:50.1]} 8. Nbd2 {[%clk 0:03:01.3]}
8... Nbd7 {[%clk 0:02:48.8]} 9. O-O {[%clk 0:03:01.2]} 9... e6 {[%clk 0:02:47]}
10. Qc2 {[%clk 0:02:59.4]} 10... Bxf3 {[%clk 0:02:45.8]} 11. Nxf3 {[%clk
0:02:59]} 11... Rc8 {[%clk 0:02:43.3]} 12. Rfd1 {[%clk 0:02:58.3]} 12... Qc7
{[%clk 0:02:39.7]} 13. Rac1 {[%clk 0:02:58.1]} 13... Qb8 {[%clk 0:02:39.4]} 14.
a4 {[%clk 0:02:56.8]} 14... Rfe8 {[%clk 0:02:36.9]} 15. h3 {[%clk 0:02:56.4]}
15... Nh5 {[%clk 0:02:32.8]} 16. Be2 {[%clk 0:02:48.7]} 16... f5 {[%clk
0:02:31.5]} 17. b4 {[%clk 0:02:45.9]} 17... Nhf6 {[%clk 0:02:26.1]} 18. Qb3
{[%clk 0:02:46]} 18... Nb6 {[%clk 0:02:10.9]} 19. Ne5 {[%clk 0:02:37.5]} 19...
Red8 {[%clk 0:02:04]} 20. b5 {[%clk 0:02:33.5]} 20... Qa8 {[%clk 0:01:35.4]} 21.
Ba3 {[%clk 0:02:24.3]} 21... Re8 {[%clk 0:01:30.2]} 22. f3 {[%clk 0:01:58.3]}
22... Nfd7 {[%clk 0:01:19.6]} 23. bxc6 {[%clk 0:01:19.9]} 23... bxc6 {[%clk
0:01:08.4]} 24. c5 {[%clk 0:01:12.3]} 24... Nxe5 {[%clk 0:00:19.4]} 25. cxb6
{[%clk 0:01:12.2]} 25... axb6 {[%clk 0:00:18.8]} 26. dxe5 {[%clk 0:01:12.6]}
26... Bxe5 {[%clk 0:00:18.9]} 27. Bb2 {[%clk 0:01:05.8]} 27... Bxb2 {[%clk
0:00:16.6]} 28. Qxb2 {[%clk 0:01:06.5]} 28... Qxa4 {[%clk 0:00:15]} 29. Qxb6
{[%clk 0:01:06.4]} 29... Qa3 {[%clk 0:00:13]} 30. Qc5 {[%clk 0:01:06.3]} 30...
Qb2 {[%clk 0:00:10.2]} 31. Bf1 {[%clk 0:01:04.5]} 31... Qe5 {[%clk 0:00:08.4]}
32. Rc3 {[%clk 0:01:00.7]} 32... Rc7 {[%clk 0:00:05.7]} 33. f4 {[%clk
0:00:59.9]} 33... Qf6 {[%clk 0:00:04.7]} 34. Rb1 {[%clk 0:01:00]} 34... Rec8
{[%clk 0:00:04]} 35. Qd4 {[%clk 0:00:58.2]} 35... Qe7 {[%clk 0:00:02.7]} 36. Rc5
{[%clk 0:00:56.8]} 36... Qd6 {[%clk 0:00:02]} 37. Rbc1 {[%clk 0:00:57.2]} 37...
Kf7 {[%clk 0:00:01.2]} 38. Qc3 {[%clk 0:00:52.1]} 38... Qd7 {[%clk 0:00:01.5]}
39. Bb5 {[%clk 0:00:45.1]} 39... Qd6 {[%clk 0:00:01.6]} 40. Bxc6 {[%clk
0:00:44.4]} 40... Qe7 {[%clk 0:00:01.1]} 41. Be8+ {[%clk 0:00:43.2]} 1-0